bitfinex/quotes_SOLUSD_20250108
["timestamp","ask_amount","ask_price","bid_price","bid_amount"]
[1736328490239,2.12,197.91,197.83,82.9]
[1736328492756,6.2335,197.92,197.84,23.776884]
[1736328492947,2.12,197.91,197.84,33.61083989]
[1736328493624,2.12,197.91,197.84,23.776884]
[1736328495836,2.12,197.91,197.84,106.676884]
[1736328497717,2.12,197.91,197.84,82.9]
[1736328501924,2.12,197.91,197.83,23.776884]
[1736328506551,2.12,197.91,197.83,34.36888101]
[1736328506947,2.12,197.91,197.83,33.61083989]
[1736328507857,2.12,197.91,197.83,116.51083989]
[1736328508457,2.12,197.91,197.85,23.776884]
[1736328508653,16.8927082,197.96,197.85,33.61083989]
[1736328508858,2.12,197.95,197.86,9.83395589]
[1736328509039,6.6037,197.97,197.88,33.61083989]
[1736328509241,2.12,197.96,197.9,23.776884]
[1736328509450,2.12,197.95,197.9,23.776884]
[1736328510367,2.12,197.94,197.9,23.776884]
[1736328510530,29.87430967,198.0,197.9,23.776884]
[1736328510733,2.12,197.99,197.9,23.776884]
[1736328515259,5.051,197.98,197.89,82.9]
[1736328519854,21.9437082,197.98,197.87,23.776884]
[1736328520050,21.9437082,197.98,197.86,82.9]
[1736328520051,11.4788,197.96,197.86,82.9]
[1736328520554,20.0,197.93,197.86,82.9]
[1736328520755,2.12,197.92,197.86,82.9]
[1736328525751,2.12,197.92,197.83,23.776884]
[1736328528683,20.0,197.91,197.82,83.9001027]
[1736328528849,7.1727,197.92,197.82,83.9001027]
[1736328532960,6.5089,197.91,197.82,83.9001027]
[1736328535270,25.0533,197.89,197.82,1.0001027]
[1736328535670,20.0,197.89,197.82,1.0001027]
[1736328538975,23.4016082,197.91,197.82,1.0001027]
[1736328539292,23.4016082,197.91,197.82,10.83405859]
[1736328540297,6.5089,197.91,197.83,23.776884]
[1736328540794,2.14,197.9,197.83,23.776884]
[1736328541493,16.8927082,197.87,197.82,1.0001027]
[1736328545715,2.14,197.86,197.82,1.0001027]
[1736328549297,16.8927082,197.87,197.82,1.0001027]
[1736328549501,2.14,197.85,197.82,1.0001027]
[1736328552708,16.8927082,197.86,197.82,1.0001027]
[1736328552880,2.14,197.84,197.82,1.0001027]
[1736328565545,2.12,197.83,197.82,1.0001027]
[1736328565704,20.0,197.86,197.82,1.0001027]
[1736328565905,2.12,197.85,197.82,1.0001027]
[1736328566742,2.12,197.84,197.82,1.0001027]
[1736328579176,16.8927082,197.89,197.82,2.5400027]
[1736328579400,2.12,197.88,197.82,2.5400027]
[1736328600682,2.12,197.88,197.82,85.4400027]
[1736328603276,2.12,197.88,197.82,2.5400027]
[1736328603587,5.0538,197.87,197.82,1.0001027]
[1736328605371,20.0,197.83,197.82,1.0001027]
[1736328607170,16.8927082,197.86,197.82,1.0001027]
[1736328607366,2.14,197.85,197.82,1.0001027]
[1736328607585,20.0,197.84,197.82,1.0001027]
[1736328607980,2.14,197.83,197.82,1.0001027]
[1736328608483,5.053,197.9,197.82,83.9001027]
[1736328608685,2.14,197.89,197.82,83.9001027]
[1736328612516,25.0538,197.87,197.82,83.9001027]
[1736328615597,25.0538,197.87,197.82,1.0001027]
[1736328622986,18.04451705,197.95,197.83,1.5666]
[1736328622987,2.14,197.86,197.83,1.5666]
[1736328628926,2.12,197.85,197.83,84.4666]
[1736328629607,2.12,197.84,197.83,84.4666]
[1736328639106,26.9964082,197.95,197.83,84.4666]
[1736328639315,7.172,197.94,197.83,84.4666]
[1736328639930,20.0,197.91,197.83,84.4666]
[1736328642811,20.0,197.92,197.83,84.4666]
[1736328643011,5.0528,197.91,197.83,84.4666]
[1736328661647,20.0,197.88,197.83,84.4666]
[1736328661842,5.0528,197.91,197.83,84.4666]
[1736328661843,2.12,197.87,197.83,1.5666]
[1736328662044,2.12,197.87,197.82,1.0001027]
[1736328663134,5.054,197.86,197.82,1.0001027]
[1736328669657,5.0533,197.89,197.82,1.0001027]
[1736328670055,20.0,197.86,197.82,1.0001027]
[1736328670950,2.12,197.85,197.83,1.5817]
[1736328672565,2.12,197.85,197.83,84.4817]
[1736328681988,20.0,197.84,197.83,82.9]
[1736328682795,2.12,197.85,197.83,82.9]
[1736328683379,5.0545,197.84,197.83,82.9]
[1736328684185,20.0,197.81,197.7,144.30846505]
[1736328684395,20.0,197.81,197.68,168.0338602]
[1736328684621,20.0,197.81,197.68,31.6338602]
[1736328684904,22.42,197.8,197.68,31.6338602]
[1736328685100,22.42,197.79,197.68,31.6338602]
[1736328685276,22.42,197.79,197.66,137.9444]
[1736328685483,20.0,197.81,197.66,147.77835589]
[1736328685788,2.42,197.78,197.66,147.77835589]
[1736328685983,2.42,197.78,197.67,0.7586069]
[1736328686170,20.0,197.8,197.67,0.7586069]
[1736328686377,2.42,197.79,197.67,0.7586069]
[1736328686576,2.42,197.79,197.66,137.9444]
[1736328686768,20.0,197.78,197.66,137.9444]
[1736328686971,25.0563,197.78,197.66,137.9444]
[1736328687171,30.0563,197.78,197.66,1.5444]
[1736328690278,20.0,197.74,197.66,56.23745863]
[1736328691286,20.0,197.72,197.66,56.23745863]
[1736328693486,20.0,197.72,197.66,54.69305863]
[1736328694086,20.0,197.7,197.66,54.69305863]
[1736328694297,22.44,197.7,197.66,54.69305863]
[1736328694505,22.44,197.7,197.62,56.28055863]
[1736328696096,20.0,197.69,197.62,56.28055863]
[1736328697801,25.0586,197.69,197.62,56.28055863]
[1736328698194,21.8927082,197.67,197.55,1.5968]
[1736328698625,20.0,197.64,197.55,56.28985863]
[1736328698792,2.42,197.63,197.55,56.28985863]
[1736328699183,20.0,197.64,197.55,56.28985863]
[1736328699184,2.42,197.62,197.55,56.28985863]
[1736328700123,25.0598,197.64,197.55,56.28985863]
[1736328700283,2.42,197.61,197.55,56.28985863]
[1736328701520,20.0,197.6,197.55,56.28985863]
[1736328701700,22.42,197.6,197.55,56.28985863]
[1736328702120,2.42,197.59,197.55,56.28985863]
[1736328704488,20.0,197.58,197.55,54.69305863]
[1736328705626,20.0,197.55,197.51,56.23285863]
[1736328706899,20.0,197.55,197.51,1.5398]
[1736328707317,20.0,197.55,197.47,61.12775863]
[1736328707505,2.42,197.54,197.48,201.68642357]
[1736328707833,2.42,197.53,197.48,200.92701452]
[1736328708196,2.42,197.53,197.48,191.09305863]
[1736328709330,2.42,197.53,197.48,54.69305863]
[1736328711411,2.42,197.53,197.45,192.66715863]
[1736328711893,2.42,197.53,197.45,56.26715863]
[1736328712196,20.0,197.49,197.42,54.69305863]
[1736328716424,20.0,197.47,197.42,54.69305863]
[1736328716604,2.4,197.46,197.42,54.69305863]
[1736328717411,2.4,197.46,197.42,136.4]
[1736328718601,5.0625,197.53,197.42,219.3]
[1736328718801,2.4,197.52,197.43,229.89351164]
[1736328719100,2.4,197.51,197.44,9.83395589]
[1736328719619,2.4,197.51,197.43,229.13395589]
[1736328719992,2.4,197.51,197.44,9.83395589]
[1736328720397,2.4,197.51,197.44,10.59342479]
[1736328721519,2.4,197.51,197.45,9.83395589]
[1736328721732,2.4,197.51,197.45,9.33395589]
[1736328721912,2.4,197.51,197.44,10.59342479]
[1736328722311,2.4,197.51,197.43,219.3]
[1736328722509,2.4,197.51,197.43,229.13395589]
[1736328723540,2.4,197.51,197.44,9.83395589]
[1736328726656,2.4,197.51,197.44,229.13395589]
[1736328727058,2.4,197.51,197.44,219.3]
[1736328728258,2.4,197.51,197.44,229.13395589]
[1736328729934,2.4,197.51,197.41,6.2738]
[1736328730334,20.0,197.49,197.41,6.2738]
[1736328730743,20.0,197.49,197.4,84.4522]
[1736328732573,20.0,197.47,197.4,1.5522]
[1736328733137,20.0,197.47,197.36,6.0328]
[1736328733138,20.0,197.47,197.38,9.83395589]
[1736328733337,20.0,197.47,197.37,10.59370955]
[1736328733764,20.0,197.47,197.38,9.83395589]
[1736328733975,2.38,197.46,197.42,9.83395589]
[1736328734178,2.38,197.45,197.43,9.83395589]
[1736328734381,2.38,197.44,197.42,1.5313]
[1736328735879,2.38,197.44,197.39,136.33076998]
[1736328736246,2.38,197.44,197.38,1.6441]
[1736328737980,22.38,197.44,197.37,82.9]
[1736328738270,27.4448,197.44,197.34,1.6648]
[1736328738579,27.4448,197.44,197.28,1.5489]
[1736328738787,27.4448,197.44,197.29,10.5939662]
[1736328739139,7.38,197.43,197.28,1.5489]
[1736328739441,15.1916,197.48,197.32,9.83395589]
[1736328739644,15.1916,197.48,197.28,1.5489]
[1736328739645,20.0,197.45,197.33,10.59382752]
[1736328739950,20.0,197.45,197.35,9.83395589]
[1736328740153,2.38,197.44,197.34,9.83395589]
[1736328740669,22.38,197.44,197.31,9.83395589]
[1736328740965,22.38,197.44,197.29,0.75986395]
[1736328741166,20.0,197.41,197.3,9.83395589]
[1736328741348,20.0,197.41,197.29,9.83395589]
[1736328741548,25.0658,197.41,197.29,9.83395589]
[1736328742177,25.0658,197.41,197.26,0.76002738]
[1736328742178,6.1928,197.4,197.26,0.76002738]
[1736328743245,20.0,197.36,197.26,0.76002738]
[1736328743577,2.38,197.35,197.26,0.76002738]
[1736328743781,2.38,197.35,197.23,0.76013721]
[1736328743989,2.38,197.35,197.23,9.83395589]
[1736328744346,2.38,197.35,197.22,9.83395589]
[1736328744545,2.38,197.35,197.23,0.76025281]
[1736328744964,20.0,197.32,197.23,0.76025281]
[1736328745349,20.0,197.32,197.21,0.76027775]
[1736328745550,20.0,197.32,197.22,9.83395589]
[1736328745758,2.38,197.31,197.26,9.83395589]
[1736328746271,2.38,197.3,197.25,9.83395589]
[1736328746464,2.38,197.3,197.25,23.776884]
[1736328746667,2.38,197.3,197.25,24.53705518]
[1736328747368,2.38,197.3,197.23,9.83395589]
[1736328747574,2.38,197.3,197.22,9.83395589]
[1736328747779,2.38,197.3,197.24,23.776884]
[1736328748064,2.38,197.3,197.2,47.2893]
[1736328748065,2.38,197.29,197.27,23.776884]
[1736328748274,2.38,197.28,197.27,23.776884]
[1736328748471,2.38,197.28,197.26,23.776884]
[1736328749145,2.38,197.28,197.26,0.76012077]
[1736328749850,2.38,197.28,197.26,24.53700477]
[1736328750469,2.38,197.28,197.27,23.776884]
[1736328752573,2.38,197.28,197.23,9.83395589]
[1736328752871,2.38,197.28,197.24,0.76019595]
[1736328753062,2.38,197.28,197.23,0.76022497]
[1736328753973,2.38,197.28,197.23,10.59418086]
[1736328754671,2.38,197.28,197.23,0.76022497]
[1736328754878,2.38,197.28,197.22,0.76024599]
[1736328755349,2.38,197.28,197.22,24.53712999]
[1736328756150,22.38,197.28,197.2,2.4095756]
[1736328756351,2.36,197.27,197.21,0.76035599]
[1736328756551,2.36,197.27,197.22,33.61083989]
[1736328756859,2.36,197.27,197.24,23.776884]
[1736328757065,2.36,197.27,197.25,0.76022169]
[1736328757277,2.36,197.27,197.26,23.776884]
[1736328758362,2.36,197.27,197.25,23.776884]
[1736328759171,2.36,197.27,197.26,24.53702418]
[1736328760660,2.36,197.27,197.23,0.76013962]
[1736328760868,2.36,197.27,197.2,11.48325589]
[1736328761075,2.36,197.27,197.21,0.76032968]
[1736328762451,2.36,197.27,197.2,2.40962259]
[1736328762774,2.36,197.27,197.2,1.6493]
[1736328763082,2.36,197.27,197.19,0.76035208]
[1736328763676,2.36,197.27,197.17,0.76039945]
[1736328764055,20.0,197.25,197.18,23.776884]
[1736328764261,5.0694,197.26,197.17,0.76039945]
[1736328764467,5.0694,197.26,197.16,10.59443257]
[1736328764468,25.0694,197.26,197.16,10.59443257]
[1736328764878,25.0694,197.26,197.16,0.76047668]
[1736328765173,25.0694,197.26,197.16,10.59443257]
[1736328765378,20.0,197.26,197.17,33.61083989]
[1736328765579,20.0,197.26,197.19,9.83395589]
[1736328765750,2.34,197.25,197.22,23.776884]
[1736328766260,2.34,197.25,197.2,0.76037144]
[1736328766464,2.34,197.25,197.2,10.59432733]
[1736328767379,2.34,197.25,197.21,23.776884]
[1736328768678,2.34,197.25,197.2,24.53725544]
[1736328768880,2.34,197.25,197.21,23.776884]
[1736328769059,2.34,197.25,197.19,23.776884]
[1736328769260,2.34,197.25,197.2,0.76041815]
[1736328769876,2.34,197.25,197.21,23.776884]
[1736328770266,2.34,197.25,197.23,23.776884]
[1736328771185,2.34,197.24,197.23,23.776884]
[1736328776279,2.34,197.24,197.2,0.76027427]
[1736328776770,2.34,197.24,197.21,23.776884]
[1736328777190,2.34,197.24,197.23,23.776884]
[1736328778192,2.34,197.24,197.19,0.76031335]
[1736328778773,2.34,197.24,197.2,23.776884]
[1736328778973,2.34,197.24,197.21,0.76032305]
[1736328779885,2.34,197.24,197.23,23.776884]
[1736328785284,2.34,197.24,197.19,0.76029325]
[1736328785488,2.34,197.24,197.18,0.76031829]
[1736328786295,2.34,197.24,197.19,23.776884]
[1736328786505,20.0,197.22,197.12,6.6533]
[1736328786709,20.0,197.2,197.13,0.7605934]
[1736328787382,20.0,197.23,197.1,0.76061862]
[1736328787580,25.0702,197.23,197.08,0.76075231]
[1736328788112,25.0702,197.23,197.09,23.776884]
[1736328788295,35.2106,197.23,197.08,0.76075231]
[1736328788684,35.2106,197.23,197.07,0.76081175]
[1736328788880,35.2106,197.23,197.08,23.776884]
[1736328789083,35.2106,197.23,197.08,24.53769103]
[1736328789279,20.0,197.18,197.06,2.41090598]
[1736328789603,2.32,197.17,197.06,2.41090598]
[1736328790379,2.32,197.17,197.02,2.36194952]
[1736328791189,26.5552,197.16,197.02,2.36194952]
[1736328791382,20.0,197.12,197.02,2.36194952]
[1736328791580,20.0,197.12,196.98,11.37545589]
[1736328791788,20.0,197.12,196.99,0.76115173]
[1736328792110,20.0,197.08,196.99,0.76115173]
[1736328792305,2.34,197.07,196.94,9.83395589]
[1736328792505,2.34,197.07,196.95,0.76125181]
[1736328793090,2.34,197.07,196.92,9.83395589]
[1736328793424,2.34,197.07,196.9,0.76129424]
[1736328793425,5.0745,197.06,196.93,0.76132335]
[1736328793626,20.0,197.02,196.95,15.48786891]
[1736328793783,2.4,197.01,196.97,23.776884]
[1736328793988,2.4,197.01,196.99,23.776884]
[1736328794413,6.6272,197.09,197.01,23.776884]
[1736328794633,2.4,197.08,197.03,23.776884]
[1736328794926,2.4,197.08,197.05,23.776884]
[1736328795125,2.4,197.07,197.06,24.53788258]
[1736328796295,2.4,197.07,197.06,23.776884]
[1736328800287,2.4,197.07,197.0,15.48786891]
[1736328800490,2.4,197.07,197.01,16.24891637]
[1736328801132,2.4,197.07,197.02,23.776884]
[1736328801333,2.4,197.07,197.04,23.776884]
[1736328802203,2.4,197.07,197.01,23.776884]
[1736328802405,2.4,197.07,196.98,0.76112834]
[1736328802835,2.4,197.07,196.99,23.776884]
[1736328803147,2.4,197.07,197.01,23.776884]
[1736328804333,2.4,197.07,197.0,23.776884]
[1736328805149,2.4,197.07,196.99,16.24900754]
[1736328805853,20.0,197.11,197.06,23.776884]
[1736328806141,6.1164,197.19,197.08,39.26475291]
[1736328806322,20.0,197.16,197.08,39.26475291]
[1736328806522,20.0,197.16,197.1,23.776884]
[1736328806732,6.1164,197.19,197.12,23.776884]
[1736328806939,2.4,197.18,197.14,23.776884]
[1736328807153,5.0704,197.23,197.16,23.776884]
[1736328807351,2.4,197.22,197.16,23.776884]
[1736328807525,22.4,197.22,197.16,23.776884]
[1736328807941,6.522,197.25,197.16,23.776884]
[1736328808124,2.4,197.24,197.18,23.776884]
[1736328808317,2.4,197.24,197.16,0.76048039]
[1736328808825,20.0,197.22,197.17,23.776884]
[1736328809216,2.4,197.21,197.17,23.776884]
[1736328809636,2.4,197.21,197.19,23.776884]
[1736328810358,2.4,197.2,197.19,23.776884]
[1736328810726,2.4,197.2,197.17,0.76044842]
[1736328811753,2.4,197.2,197.18,23.776884]
[1736328811958,2.4,197.2,197.19,24.53730123]
[1736328812125,20.0,197.24,197.2,23.776884]
[1736328812324,2.4,197.23,197.2,23.776884]
[1736328812719,2.4,197.23,197.19,0.76041723]
[1736328812919,2.4,197.23,197.17,23.776884]
[1736328813140,2.4,197.23,197.19,23.776884]
[1736328814451,2.4,197.23,197.17,23.776884]
[1736328814625,2.4,197.23,197.19,23.776884]
[1736328815737,2.4,197.23,197.16,23.776884]
[1736328815932,2.4,197.23,197.17,0.76047505]
[1736328816950,2.4,197.23,197.18,23.776884]
[1736328820835,2.4,197.23,197.2,23.776884]
[1736328823253,2.4,197.23,197.15,23.776884]
[1736328823437,2.4,197.23,197.17,23.776884]
[1736328823637,2.4,197.23,197.19,23.776884]
[1736328826759,20.0,197.24,197.19,23.776884]
[1736328826964,2.36,197.23,197.21,23.776884]
[1736328827269,2.36,197.22,197.21,23.776884]
[1736328828547,2.36,197.22,197.21,0.76032628]
[1736328830575,20.0,197.26,197.21,0.76032628]
[1736328830781,2.36,197.22,197.21,0.76032628]
[1736328833787,2.36,197.22,197.21,24.53721028]
[1736328834488,2.36,197.22,197.21,23.776884]
[1736328844994,2.36,197.22,197.14,0.76038144]
[1736328845287,5.0707,197.21,197.12,1.5901]
[1736328845460,20.0,197.18,197.12,1.5901]
[1736328846081,20.0,197.18,197.09,0.76071422]
[1736328846253,20.0,197.18,197.07,1.5753]
[1736328847060,5.0717,197.17,197.08,23.776884]
[1736328848258,5.0717,197.17,197.07,1.5753]
[1736328848665,5.0726,197.14,197.03,0.76091317]
[1736328848867,2.34,197.13,197.02,1.5765]
[1736328849072,2.34,197.13,197.02,2.3375339]
[1736328849784,2.34,197.13,197.03,23.776884]
[1736328850099,2.34,197.13,197.02,2.3375339]
[1736328850599,20.0,197.09,197.0,0.76104449]
[1736328851392,20.0,197.09,197.02,23.776884]
[1736328852492,20.0,197.09,197.01,23.776884]
[1736328852858,5.0734,197.11,197.01,23.776884]
[1736328855086,5.0734,197.11,196.99,0.76111737]
[1736328855274,20.0,197.08,196.99,0.76111737]
[1736328855869,20.0,197.08,197.0,23.776884]
[1736328856872,20.0,197.08,196.99,23.776884]
[1736328858068,5.0741,197.08,196.98,1.5765]
[1736328858799,5.0741,197.08,196.99,23.776884]
[1736328859480,20.0,197.08,196.99,34.42711052]
[1736328859875,20.0,197.08,196.99,24.538136]
[1736328861689,2.32,197.07,196.99,34.42711052]
[1736328862191,20.0,197.08,197.0,9.88897452]
[1736328862387,2.32,197.07,197.01,0.76106147]
[1736328862594,2.32,197.07,197.01,10.65003599]
[1736328863010,2.32,197.07,197.02,23.776884]
[1736328864185,2.32,197.07,197.04,23.776884]
[1736328864775,5.0725,197.14,197.06,23.776884]
[1736328865095,20.0,197.11,197.06,23.776884]
[1736328865806,20.0,197.11,197.06,0.76092378]
[1736328866799,2.32,197.13,197.07,23.776884]
[1736328867396,2.32,197.13,197.06,23.776884]
[1736328868597,2.32,197.13,197.07,0.76088832]
[1736328870303,2.32,197.13,197.04,9.88897452]
[1736328870304,22.32,197.13,197.0,0.76091641]
[1736328871402,5.073,197.12,197.0,10.64989093]
[1736328871607,5.073,197.12,197.01,33.66585852]
[1736328871790,2.32,197.11,197.03,23.776884]
[1736328871987,2.32,197.11,197.05,23.776884]
[1736328872912,6.4671,197.17,197.07,23.776884]
[1736328872913,2.32,197.1,197.07,23.776884]
[1736328873098,5.0723,197.15,197.09,23.776884]
[1736328873287,20.0,197.12,197.09,23.776884]
[1736328873612,20.0,197.12,197.07,23.776884]
[1736328878393,2.32,197.14,197.07,23.776884]
[1736328879294,20.0,197.12,197.07,23.776884]
[1736328881513,20.0,197.12,197.09,23.776884]
[1736328881714,22.32,197.14,197.09,23.776884]
[1736328883301,22.32,197.14,197.07,23.776884]
[1736328891704,22.32,197.14,197.09,23.776884]
[1736328893909,2.28,197.13,197.09,23.776884]
[1736328894828,2.28,197.12,197.11,23.776884]
[1736328898420,2.28,197.12,197.11,33.66585852]
[1736328898611,2.28,197.12,197.11,34.42654448]
[1736328899610,2.28,197.12,197.11,33.66585852]
[1736328900810,6.3574,197.22,197.11,33.66585852]
[1736328901010,2.28,197.21,197.16,23.776884]
[1736328901216,6.2218,197.27,197.16,34.42639518]
[1736328901417,2.28,197.26,197.16,34.42639518]
[1736328901722,2.28,197.26,197.18,23.776884]
[1736328901917,6.4382,197.32,197.2,23.776884]
[1736328902143,6.4382,197.32,197.22,23.776884]
[1736328902144,7.3481,197.31,197.22,23.776884]
[1736328902317,5.0681,197.31,197.24,23.776884]
[1736328902517,2.28,197.3,197.24,23.776884]
[1736328903017,20.0,197.28,197.24,23.776884]
[1736328903713,2.28,197.3,197.24,23.776884]
[1736328904230,20.0,197.28,197.24,23.776884]
[1736328904429,20.0,197.28,197.22,23.776884]
[1736328905136,2.28,197.27,197.22,23.776884]
[1736328905441,2.28,197.27,197.21,23.776884]
[1736328905644,2.28,197.27,197.22,0.76030513]
[1736328907325,2.28,197.27,197.2,0.76030884]
[1736328907525,2.28,197.27,197.21,23.776884]
[1736328907823,20.0,197.28,197.23,23.776884]
[1736328908026,2.28,197.27,197.23,23.776884]
[1736328909012,1.58,197.27,197.23,23.776884]
[1736328910345,1.58,197.27,197.21,23.776884]
[1736328911145,1.58,197.27,197.2,23.776884]
[1736328911944,1.58,197.27,197.21,0.76037341]
[1736328913550,1.58,197.27,197.2,24.53726554]
[1736328916065,1.58,197.27,197.2,23.776884]
[1736328916355,5.0694,197.26,197.18,0.76044686]
[1736328917046,20.0,197.23,197.18,0.76044686]
[1736328917264,20.0,197.23,197.16,23.776884]
[1736328917450,5.0694,197.26,197.18,23.776884]
[1736328917956,20.0,197.23,197.18,23.776884]
[1736328918455,20.0,197.23,197.16,23.776884]
[1736328919069,20.0,197.23,197.18,23.776884]
[1736328919642,1.58,197.27,197.14,1.5239]
[1736328919643,5.0701,197.24,197.14,1.5239]
[1736328919858,20.0,197.21,197.09,2.34831587]
[1736328920046,2.26,197.2,197.09,2.34831587]
[1736328920247,2.26,197.2,197.09,1.5877]
[1736328921360,20.0,197.17,197.1,23.776884]
[1736328921862,20.0,197.17,197.09,2.34851237]
[1736328922560,20.0,197.17,197.1,23.776884]
[1736328923249,20.0,197.17,197.04,2.28257912]
[1736328923449,5.0718,197.17,197.05,9.88897452]
[1736328923656,5.0718,197.17,197.06,24.53775173]
[1736328925061,20.0,197.14,197.04,1.5218]
[1736328925248,2.26,197.13,197.04,2.28275039]
[1736328925750,2.26,197.13,197.05,23.776884]
[1736328925949,2.26,197.13,197.06,0.76091464]
[1736328926761,2.26,197.12,197.06,10.64988916]
[1736328928560,2.26,197.11,197.06,10.64988916]
[1736328929267,2.26,197.1,197.08,9.88897452]
[1736328929457,20.0,197.14,197.1,23.776884]
[1736328929643,2.26,197.13,197.1,23.776884]
[1736328931342,2.26,197.12,197.1,23.776884]
[1736328931658,2.26,197.12,197.08,23.776884]
[1736328933474,2.26,197.11,197.08,23.776884]
[1736328933671,5.0709,197.21,197.1,23.776884]
[1736328933871,5.0709,197.21,197.12,33.66585852]
[1736328934072,6.1045,197.22,197.14,33.66585852]
[1736328934375,2.26,197.21,197.16,23.776884]
[1736328934884,2.26,197.21,197.18,23.776884]
[1736328935770,2.26,197.21,197.17,23.776884]
[1736328939181,2.26,197.21,197.14,9.88897452]
[1736328939358,2.26,197.21,197.13,9.88897452]
[1736328939698,2.26,197.21,197.15,23.776884]
[1736328940060,7.3308,197.21,197.11,1.6417]
[1736328940258,7.3308,197.21,197.06,11.48537452]
[1736328940460,7.3308,197.21,197.07,0.76082945]
[1736328941256,20.0,197.17,197.06,1.5964]
[1736328941475,20.0,197.17,197.07,23.776884]
[1736328941962,20.0,197.17,197.06,1.5964]
[1736328942371,25.0718,197.17,197.06,1.5964]
[1736328942674,25.0718,197.17,197.07,23.776884]
[1736328943985,2.26,197.16,197.07,24.53777274]
[1736328944370,20.0,197.12,197.02,10.64985034]
[1736328944571,20.0,197.12,197.03,23.776884]
[1736328944891,20.0,197.12,197.05,23.776884]
[1736328945389,20.0,197.12,197.04,23.776884]
[1736328946277,20.0,197.12,197.01,94.35157452]
[1736328946465,20.0,197.12,197.02,23.776884]
[1736328947578,20.0,197.12,197.02,24.53797279]
[1736328948089,20.0,197.12,197.04,23.776884]
[1736328952998,2.26,197.11,197.04,23.776884]
[1736328954782,2.26,197.1,197.06,23.776884]
[1736328954987,2.26,197.09,197.08,23.776884]
[1736328955289,20.0,197.24,197.08,33.66585852]
[1736328955469,2.26,197.19,197.1,33.66585852]
[1736328955670,20.0,197.17,197.12,23.776884]
[1736328956181,2.26,197.16,197.12,23.776884]
[1736328957313,2.26,197.16,197.09,23.776884]
[1736328957471,2.26,197.16,197.09,24.53766397]
[1736328957889,2.26,197.16,197.05,0.76078339]
[1736328958196,2.26,197.16,197.07,23.776884]
[1736328958372,2.26,197.16,197.07,24.53775535]
[1736328958578,2.26,197.16,197.04,20.0]
[1736328958783,2.26,197.16,197.05,10.64989493]
[1736328959202,20.0,197.15,197.05,10.64989493]
[1736328959423,20.0,197.15,197.06,23.776884]
[1736328959882,20.0,197.15,197.07,0.76090051]
[1736328960289,20.0,197.15,197.06,23.776884]
[1736328960496,7.3322,197.16,197.05,0.76091168]
[1736328960790,7.3322,197.16,197.06,23.776884]
[1736328962491,7.3322,197.16,197.07,0.76090957]
[1736328962807,7.3322,197.16,197.08,23.776884]
[1736328965409,2.26,197.16,197.08,23.776884]
[1736328965608,20.0,197.17,197.1,23.776884]
[1736328965818,2.26,197.15,197.12,23.776884]
[1736328966412,2.26,197.14,197.12,23.776884]
[1736328966595,5.0702,197.23,197.12,33.66585852]
[1736328966923,2.26,197.22,197.14,23.776884]
[1736328967098,2.26,197.21,197.14,23.776884]
[1736328967507,6.2146,197.25,197.14,23.776884]
[1736328967692,2.26,197.24,197.14,23.776884]
[1736328968090,2.26,197.24,197.14,9.88897452]